[Event "Titled Tuesday Blitz October 31 Late 2023"]
[White "Dmitrenko, Viktor"]
[Black "Haydon, David L"]
[WhiteFideId "14110270"]
[BlackFideId "415405"]
[WhiteElo "2380"]
[BlackElo "2623"]
[Result "0-1"]
[Round "6"]
[TimeControl "180+1"]
[Date "2023.10.31"]
[WhiteClock "0:00:00"]
[BlackClock "0:00:17"]
[Board "60"]

1. d4 {[%clk 0:03:00]}  Nf6 {[%clk 0:02:56]} 2. Bf4 {[%clk 0:02:59]}  d5 {[%clk 0:02:56]} 3. Nf3 {[%clk 0:02:59]}  e6 {[%clk 0:02:55]} 4. e3 {[%clk 0:02:59]}  Bd6 {[%clk 0:02:56]} 5. Ne5 {[%clk 0:02:57]}  c5 {[%clk 0:02:55]} 6. c3 {[%clk 0:02:55]}  Nc6 {[%clk 0:02:50]} 7. Nd2 {[%clk 0:02:52]}  Qc7 {[%clk 0:02:49]} 8. Ndf3 {[%clk 0:02:47]}  Nh5 {[%clk 0:02:48]} 9. Nxc6 {[%clk 0:02:10]}  Nxf4 {[%clk 0:02:44]} 10. Nce5 {[%clk 0:02:09]}  Ng6 {[%clk 0:02:41]} 11. Bb5+ {[%clk 0:02:02]}  Ke7 {[%clk 0:02:36]} 12. Nxg6+ {[%clk 0:01:57]}  hxg6 {[%clk 0:02:30]} 13. h4 {[%clk 0:01:52]}  b6 {[%clk 0:02:25]} 14. Qe2 {[%clk 0:01:43]}  Bb7 {[%clk 0:02:18]} 15. Ba6 {[%clk 0:01:41]}  Bc6 {[%clk 0:02:14]} 16. Bb5 {[%clk 0:01:32]}  Bb7 {[%clk 0:02:09]} 17. Ba6 {[%clk 0:01:26]}  Rh6 {[%clk 0:02:00]} 18. Bxb7 {[%clk 0:01:22]}  Qxb7 {[%clk 0:01:59]} 19. g3 {[%clk 0:01:20]}  Rah8 {[%clk 0:01:53]} 20. O-O-O {[%clk 0:01:19]}  Qc6 {[%clk 0:01:52]} 21. Kb1 {[%clk 0:01:17]}  Rc8 {[%clk 0:01:49]} 22. dxc5 {[%clk 0:01:15]}  bxc5 {[%clk 0:01:47]} 23. e4 {[%clk 0:01:14]}  dxe4 {[%clk 0:01:41]} 24. Ng5 {[%clk 0:01:08]}  f5 {[%clk 0:01:41]} 25. Qc4 {[%clk 0:01:02]}  Be5 {[%clk 0:01:38]} 26. Rhe1 {[%clk 0:00:50]}  Bf6 {[%clk 0:01:34]} 27. Nh3 {[%clk 0:00:39]}  g5 {[%clk 0:01:06]} 28. f3 {[%clk 0:00:36]}  exf3 {[%clk 0:00:59]} 29. hxg5 {[%clk 0:00:22]}  Rxh3 {[%clk 0:00:56]} 30. gxf6+ {[%clk 0:00:23]}  Kxf6 {[%clk 0:00:51]} 31. g4 {[%clk 0:00:22]}  Rh4 {[%clk 0:00:46]} 32. g5+ {[%clk 0:00:22]}  Kxg5 {[%clk 0:00:46]} 33. Rg1+ {[%clk 0:00:19]}  Rg4 {[%clk 0:00:46]} 34. Rxg4+ {[%clk 0:00:19]}  fxg4 {[%clk 0:00:46]} 35. Rg1 {[%clk 0:00:19]}  Qd5 {[%clk 0:00:45]} 36. Qxg4+ {[%clk 0:00:19]}  Kf6 {[%clk 0:00:42]} 37. Qxg7+ {[%clk 0:00:19]}  Kf5 {[%clk 0:00:42]} 38. Qg4+ {[%clk 0:00:15]}  Ke5 {[%clk 0:00:40]} 39. Qg3+ {[%clk 0:00:15]}  Ke4 {[%clk 0:00:37]} 40. Re1+ {[%clk 0:00:14]}  Kf5 {[%clk 0:00:35]} 41. Rg1 {[%clk 0:00:11]}  Qe4+ {[%clk 0:00:32]} 42. Ka1 {[%clk 0:00:11]}  Qf4 {[%clk 0:00:32]} 43. Qg6+ {[%clk 0:00:11]}  Ke5 {[%clk 0:00:32]} 44. Re1+ {[%clk 0:00:11]}  Kd6 {[%clk 0:00:30]} 45. Qxe6+ {[%clk 0:00:11]}  Kc7 {[%clk 0:00:30]} 46. Qe7+ {[%clk 0:00:11]}  Kb8 {[%clk 0:00:31]} 47. Rf1 {[%clk 0:00:09]}  Rf8 {[%clk 0:00:26]} 48. Qd7 {[%clk 0:00:08]}  Qe5 {[%clk 0:00:24]} 49. Qb5+ {[%clk 0:00:07]}  Kc7 {[%clk 0:00:22]} 50. Qa5+ {[%clk 0:00:08]}  Kd6 {[%clk 0:00:20]} 51. Qa6+ {[%clk 0:00:07]}  Kd5 {[%clk 0:00:20]} 52. Qd3+ {[%clk 0:00:06]}  Ke6 {[%clk 0:00:19]} 53. a3 {[%clk 0:00:05]}  f2 {[%clk 0:00:18]} 54. Qa6+ {[%clk 0:00:03]}  Qd6 {[%clk 0:00:18]} 55. Qc4+ {[%clk 0:00:03]}  Qd5 {[%clk 0:00:18]} 56. Qg4+ {[%clk 0:00:03]}  Kd6 {[%clk 0:00:18]} 57. Qg6+ {[%clk 0:00:00]}  Ke7 {[%clk 0:00:17]} 0-1


[Site "https://www.chess.com"]

[Event "Titled Tuesday Blitz October 31 Late 2023"]
[White "Kornyukov, Alexey"]
[Black "Krishnan, Varun"]
[WhiteFideId "4150457"]
[BlackFideId "5054508"]
[WhiteElo "2321"]
[BlackElo "2615"]
[Result "1-0"]
[Round "6"]
[TimeControl "180+1"]
[Date "2023.10.31"]
[WhiteClock "0:00:11"]
[BlackClock "0:00:00"]
[Board "61"]

1. d4 {[%clk 0:02:59]}  Nf6 {[%clk 0:02:58]} 2. c4 {[%clk 0:02:59]}  g6 {[%clk 0:02:59]} 3. f3 {[%clk 0:02:59]}  Bg7 {[%clk 0:02:57]} 4. e4 {[%clk 0:02:59]}  d6 {[%clk 0:02:57]} 5. Nc3 {[%clk 0:02:59]}  O-O {[%clk 0:02:57]} 6. Bg5 {[%clk 0:02:59]}  c5 {[%clk 0:02:40]} 7. d5 {[%clk 0:02:59]}  a6 {[%clk 0:02:35]} 8. a4 {[%clk 0:02:58]}  Qa5 {[%clk 0:02:32]} 9. Bd2 {[%clk 0:02:45]}  Qc7 {[%clk 0:02:31]} 10. Bg5 {[%clk 0:02:33]}  Nbd7 {[%clk 0:02:27]} 11. Nh3 {[%clk 0:02:33]}  Re8 {[%clk 0:02:10]} 12. Nf2 {[%clk 0:02:32]}  b6 {[%clk 0:02:03]} 13. Be2 {[%clk 0:02:31]}  Bb7 {[%clk 0:02:00]} 14. O-O {[%clk 0:02:30]}  e6 {[%clk 0:01:57]} 15. Qd2 {[%clk 0:02:25]}  exd5 {[%clk 0:01:57]} 16. exd5 {[%clk 0:02:14]}  Re7 {[%clk 0:01:49]} 17. f4 {[%clk 0:02:03]}  Rae8 {[%clk 0:01:47]} 18. Bd3 {[%clk 0:02:03]}  Bc8 {[%clk 0:01:26]} 19. h3 {[%clk 0:01:58]}  Nf8 {[%clk 0:01:09]} 20. f5 {[%clk 0:01:52]}  N8d7 {[%clk 0:01:01]} 21. Ng4 {[%clk 0:01:32]}  Nxg4 {[%clk 0:00:53]} 22. hxg4 {[%clk 0:01:31]}  Bd4+ {[%clk 0:00:40]} 23. Kh2 {[%clk 0:01:20]}  f6 {[%clk 0:00:40]} 24. Bf4 {[%clk 0:01:05]}  g5 {[%clk 0:00:37]} 25. Bg3 {[%clk 0:01:01]}  Ne5 {[%clk 0:00:34]} 26. Bxe5 {[%clk 0:00:54]}  Rxe5 {[%clk 0:00:31]} 27. Rae1 {[%clk 0:00:40]}  Qg7 {[%clk 0:00:29]} 28. g3 {[%clk 0:00:35]}  Qe7 {[%clk 0:00:19]} 29. Ne4 {[%clk 0:00:34]}  h6 {[%clk 0:00:15]} 30. Kg2 {[%clk 0:00:32]}  Kg7 {[%clk 0:00:15]} 31. Re2 {[%clk 0:00:31]}  Bb7 {[%clk 0:00:15]} 32. Rfe1 {[%clk 0:00:31]}  b5 {[%clk 0:00:16]} 33. axb5 {[%clk 0:00:29]}  axb5 {[%clk 0:00:16]} 34. b3 {[%clk 0:00:28]}  bxc4 {[%clk 0:00:15]} 35. bxc4 {[%clk 0:00:27]}  Ba8 {[%clk 0:00:15]} 36. Rb1 {[%clk 0:00:26]}  Bxd5 {[%clk 0:00:12]} 37. cxd5 {[%clk 0:00:25]}  Rxd5 {[%clk 0:00:11]} 38. Nxc5 {[%clk 0:00:21]}  Qxe2+ {[%clk 0:00:04]} 39. Bxe2 {[%clk 0:00:22]}  dxc5 {[%clk 0:00:04]} 40. Rb7+ {[%clk 0:00:19]}  Kh8 {[%clk 0:00:04]} 41. Bc4 {[%clk 0:00:17]}  Rde5 {[%clk 0:00:04]} 42. Qa2 {[%clk 0:00:15]}  Re1 {[%clk 0:00:03]} 43. Qa7 {[%clk 0:00:12]}  Rg1+ {[%clk 0:00:03]} 44. Kh2 {[%clk 0:00:12]}  Re7 {[%clk 0:00:00]} 45. Rxe7 {[%clk 0:00:11]} 1-0


[Site "https://www.chess.com"]

[Event "Titled Tuesday Blitz October 31 Late 2023"]
[White "Curtis, John"]
[Black "Karttunen, Mika"]
[WhiteFideId "3200256"]
[BlackFideId "502081"]
[WhiteElo "2179"]
[BlackElo "2594"]
[Result "0-1"]
[Round "6"]
[TimeControl "180+1"]
[Date "2023.10.31"]
[WhiteClock "0:00:13"]
[BlackClock "0:00:14"]
[Board "66"]

1. d4 {[%clk 0:03:00]}  f5 {[%clk 0:02:58]} 2. Nf3 {[%clk 0:02:57]}  Nf6 {[%clk 0:02:57]} 3. g3 {[%clk 0:02:58]}  g6 {[%clk 0:02:56]} 4. Bg2 {[%clk 0:02:58]}  Bg7 {[%clk 0:02:57]} 5. O-O {[%clk 0:02:59]}  O-O {[%clk 0:02:57]} 6. c4 {[%clk 0:02:59]}  d6 {[%clk 0:02:57]} 7. Nc3 {[%clk 0:02:59]}  c6 {[%clk 0:02:52]} 8. d5 {[%clk 0:02:57]}  e5 {[%clk 0:02:45]} 9. dxe6 {[%clk 0:02:53]}  Bxe6 {[%clk 0:02:45]} 10. b3 {[%clk 0:02:51]}  Qe7 {[%clk 0:02:41]} 11. Ba3 {[%clk 0:02:46]}  Rd8 {[%clk 0:02:35]} 12. Nd4 {[%clk 0:02:40]}  Bf7 {[%clk 0:02:32]} 13. Re1 {[%clk 0:02:39]}  Ne4 {[%clk 0:02:14]} 14. Nxe4 {[%clk 0:02:26]}  fxe4 {[%clk 0:02:13]} 15. Rb1 {[%clk 0:02:24]}  e3 {[%clk 0:02:04]} 16. f4 {[%clk 0:02:21]}  Na6 {[%clk 0:01:59]} 17. Bb2 {[%clk 0:01:54]}  d5 {[%clk 0:01:57]} 18. cxd5 {[%clk 0:01:52]}  Bxd5 {[%clk 0:01:57]} 19. Qd3 {[%clk 0:01:13]}  Nb4 {[%clk 0:01:12]} 20. Bxd5+ {[%clk 0:01:10]}  Rxd5 {[%clk 0:01:10]} 21. Qc4 {[%clk 0:01:09]}  Bxd4 {[%clk 0:00:56]} 22. Bxd4 {[%clk 0:01:02]}  b5 {[%clk 0:00:37]} 23. Qc3 {[%clk 0:00:54]}  Nxa2 {[%clk 0:00:25]} 24. Qxc6 {[%clk 0:00:39]}  Rad8 {[%clk 0:00:25]} 25. Ba1 {[%clk 0:00:38]}  Qd6 {[%clk 0:00:18]} 26. Qb7 {[%clk 0:00:27]}  Qd7 {[%clk 0:00:18]} 27. Qa6 {[%clk 0:00:25]}  Nb4 {[%clk 0:00:17]} 28. Qf6 {[%clk 0:00:24]}  Nc2 {[%clk 0:00:15]} 29. Qh8+ {[%clk 0:00:23]}  Kf7 {[%clk 0:00:15]} 30. Qxh7+ {[%clk 0:00:21]}  Ke8 {[%clk 0:00:15]} 31. Qxg6+ {[%clk 0:00:21]}  Qf7 {[%clk 0:00:15]} 32. Qc6+ {[%clk 0:00:21]}  Kf8 {[%clk 0:00:15]} 33. Qxc2 {[%clk 0:00:22]}  Kg8 {[%clk 0:00:15]} 34. Qb2 {[%clk 0:00:21]}  Kh7 {[%clk 0:00:15]} 35. Rbc1 {[%clk 0:00:19]}  Rd2 {[%clk 0:00:14]} 36. Qe5 {[%clk 0:00:18]}  R2d5 {[%clk 0:00:12]} 37. Rc7 {[%clk 0:00:18]}  Rxe5 {[%clk 0:00:11]} 38. Rxf7+ {[%clk 0:00:18]}  Kg6 {[%clk 0:00:11]} 39. Bxe5 {[%clk 0:00:17]}  Kxf7 {[%clk 0:00:12]} 40. Kg2 {[%clk 0:00:18]}  Rd2 {[%clk 0:00:12]} 41. Kf3 {[%clk 0:00:18]}  Ke6 {[%clk 0:00:13]} 42. Kxe3 {[%clk 0:00:18]}  Ra2 {[%clk 0:00:13]} 43. Ke4 {[%clk 0:00:18]}  Ra3 {[%clk 0:00:13]} 44. f5+ {[%clk 0:00:18]}  Kd7 {[%clk 0:00:14]} 45. b4 {[%clk 0:00:18]}  Ra4 {[%clk 0:00:14]} 46. Rc1 {[%clk 0:00:18]}  a5 {[%clk 0:00:14]} 47. Kd5 {[%clk 0:00:19]}  Rxb4 {[%clk 0:00:14]} 48. Rc7+ {[%clk 0:00:19]}  Kd8 {[%clk 0:00:15]} 49. Ra7 {[%clk 0:00:20]}  a4 {[%clk 0:00:15]} 50. Bd6 {[%clk 0:00:20]}  Rb2 {[%clk 0:00:14]} 51. Ke6 {[%clk 0:00:21]}  Rxe2+ {[%clk 0:00:14]} 52. Be5 {[%clk 0:00:20]}  Kc8 {[%clk 0:00:14]} 53. Rc7+ {[%clk 0:00:19]}  Kd8 {[%clk 0:00:14]} 54. Rb7 {[%clk 0:00:19]}  Rxe5+ {[%clk 0:00:14]} 55. Kxe5 {[%clk 0:00:19]}  a3 {[%clk 0:00:15]} 56. f6 {[%clk 0:00:19]}  a2 {[%clk 0:00:15]} 57. f7 {[%clk 0:00:19]}  a1=Q+ {[%clk 0:00:14]} 58. Ke6 {[%clk 0:00:18]}  Qa2+ {[%clk 0:00:14]} 59. Kd6 {[%clk 0:00:18]}  Qd2+ {[%clk 0:00:13]} 60. Ke6 {[%clk 0:00:19]}  Qe2+ {[%clk 0:00:13]} 61. Kd6 {[%clk 0:00:19]}  Qd3+ {[%clk 0:00:13]} 62. Ke6 {[%clk 0:00:19]}  Qc4+ {[%clk 0:00:14]} 63. Kd6 {[%clk 0:00:20]}  Qb4+ {[%clk 0:00:12]} 64. Ke6 {[%clk 0:00:20]}  Kc8 {[%clk 0:00:13]} 65. Re7 {[%clk 0:00:19]}  Qc4+ {[%clk 0:00:13]} 66. Kf6 {[%clk 0:00:19]}  Qd4+ {[%clk 0:00:12]} 67. Kg6 {[%clk 0:00:19]}  Qd6+ {[%clk 0:00:11]} 68. Re6 {[%clk 0:00:15]}  Qxe6+ {[%clk 0:00:11]} 69. Kg7 {[%clk 0:00:16]}  Qe7 {[%clk 0:00:11]} 70. Kg8 {[%clk 0:00:16]}  Qg5+ {[%clk 0:00:12]} 71. Kh7 {[%clk 0:00:16]}  Qf6 {[%clk 0:00:11]} 72. Kg8 {[%clk 0:00:16]}  Qg6+ {[%clk 0:00:12]} 73. Kf8 {[%clk 0:00:12]}  Kd7 {[%clk 0:00:11]} 74. h4 {[%clk 0:00:13]}  Ke6 {[%clk 0:00:12]} 75. Ke8 {[%clk 0:00:12]}  Qxf7+ {[%clk 0:00:13]} 76. Kd8 {[%clk 0:00:13]}  Qd7# {[%clk 0:00:14]} 0-1


[Site "https://www.chess.com"]

[Event "Titled Tuesday Blitz October 31 Late 2023"]
[White "Kubicka, Anna"]
[Black "Olsen, Filip Boe"]
[WhiteFideId "1152254"]
[BlackFideId "1440640"]
[WhiteElo "2468"]
[BlackElo "2654"]
[Result "1-0"]
[Round "6"]
[TimeControl "180+1"]
[Date "2023.10.31"]
[WhiteClock "0:00:16"]
[BlackClock "0:00:15"]
[Board "70"]

1. e4 {[%clk 0:03:00]}  c5 {[%clk 0:02:49]} 2. Ne2 {[%clk 0:02:58]}  a6 {[%clk 0:02:47]} 3. g3 {[%clk 0:02:57]}  b5 {[%clk 0:02:47]} 4. Bg2 {[%clk 0:02:58]}  Bb7 {[%clk 0:02:47]} 5. O-O {[%clk 0:02:59]}  d6 {[%clk 0:02:47]} 6. c3 {[%clk 0:02:59]}  Nf6 {[%clk 0:02:47]} 7. Qc2 {[%clk 0:02:52]}  Nc6 {[%clk 0:02:41]} 8. d4 {[%clk 0:02:50]}  Rc8 {[%clk 0:02:28]} 9. e5 {[%clk 0:02:42]}  Nd7 {[%clk 0:02:15]} 10. e6 {[%clk 0:02:43]}  fxe6 {[%clk 0:02:14]} 11. Nf4 {[%clk 0:02:39]}  Nf6 {[%clk 0:02:04]} 12. Nxe6 {[%clk 0:02:31]}  Qd7 {[%clk 0:02:03]} 13. Bh3 {[%clk 0:02:12]}  cxd4 {[%clk 0:01:37]} 14. Nxg7+ {[%clk 0:01:38]}  Bxg7 {[%clk 0:01:33]} 15. Bxd7+ {[%clk 0:01:39]}  Kxd7 {[%clk 0:01:24]} 16. Bg5 {[%clk 0:01:21]}  d3 {[%clk 0:01:23]} 17. Qd1 {[%clk 0:01:10]}  h6 {[%clk 0:01:08]} 18. Bxf6 {[%clk 0:01:09]}  Bxf6 {[%clk 0:01:09]} 19. f4 {[%clk 0:01:01]}  h5 {[%clk 0:01:08]} 20. Qxd3 {[%clk 0:00:57]}  Rcg8 {[%clk 0:01:02]} 21. Nd2 {[%clk 0:00:45]}  h4 {[%clk 0:00:54]} 22. Ne4 {[%clk 0:00:44]}  hxg3 {[%clk 0:00:54]} 23. hxg3 {[%clk 0:00:45]}  Rh6 {[%clk 0:00:41]} 24. Nc5+ {[%clk 0:00:43]}  Kc7 {[%clk 0:00:38]} 25. Nxb7 {[%clk 0:00:44]}  Kxb7 {[%clk 0:00:39]} 26. Kg2 {[%clk 0:00:34]}  Rhg6 {[%clk 0:00:39]} 27. Rf3 {[%clk 0:00:34]}  R6g7 {[%clk 0:00:29]} 28. Rh1 {[%clk 0:00:31]}  b4 {[%clk 0:00:27]} 29. Rh7 {[%clk 0:00:29]}  Rxh7 {[%clk 0:00:25]} 30. Qxh7 {[%clk 0:00:30]}  Rg7 {[%clk 0:00:26]} 31. Qe4 {[%clk 0:00:27]}  Kc7 {[%clk 0:00:24]} 32. a3 {[%clk 0:00:20]}  bxa3 {[%clk 0:00:23]} 33. bxa3 {[%clk 0:00:19]}  a5 {[%clk 0:00:23]} 34. Rf2 {[%clk 0:00:19]}  Kd7 {[%clk 0:00:22]} 35. Rb2 {[%clk 0:00:19]}  Nd8 {[%clk 0:00:22]} 36. Rb8 {[%clk 0:00:18]}  Bh4 {[%clk 0:00:17]} 37. Qa4+ {[%clk 0:00:18]}  Ke6 {[%clk 0:00:17]} 38. Rxd8 {[%clk 0:00:18]}  Rxg3+ {[%clk 0:00:17]} 39. Kh2 {[%clk 0:00:18]}  Rg4 {[%clk 0:00:15]} 40. Qd7+ {[%clk 0:00:18]}  Kf6 {[%clk 0:00:14]} 41. Qxg4 {[%clk 0:00:18]}  Bf2 {[%clk 0:00:15]} 42. Rf8# {[%clk 0:00:16]} 1-0


[Site "https://www.chess.com"]

[Event "Titled Tuesday Blitz October 31 Late 2023"]
[White "Sipila, Vilka"]
[Black "Musovic, Armin"]
[WhiteFideId "505455"]
[BlackFideId "939935"]
[WhiteElo "2644"]
[BlackElo "2456"]
[Result "0-1"]
[Round "6"]
[TimeControl "180+1"]
[Date "2023.10.31"]
[WhiteClock "0:01:52"]
[BlackClock "0:02:36"]
[Board "71"]

1. e4 {[%clk 0:03:00]}  c6 {[%clk 0:02:59]} 2. d4 {[%clk 0:03:00]}  d5 {[%clk 0:03:00]} 3. e5 {[%clk 0:03:01]}  c5 {[%clk 0:03:00]} 4. Nf3 {[%clk 0:03:00]}  Nc6 {[%clk 0:03:00]} 5. dxc5 {[%clk 0:03:00]}  Bg4 {[%clk 0:03:01]} 6. c3 {[%clk 0:03:00]}  e6 {[%clk 0:03:01]} 7. Be3 {[%clk 0:03:00]}  Nge7 {[%clk 0:03:01]} 8. h3 {[%clk 0:02:53]}  Bh5 {[%clk 0:02:59]} 9. g4 {[%clk 0:02:53]}  Bg6 {[%clk 0:02:59]} 10. Nbd2 {[%clk 0:02:50]}  Qc7 {[%clk 0:02:59]} 11. Bd4 {[%clk 0:02:47]}  a6 {[%clk 0:02:58]} 12. b4 {[%clk 0:02:46]}  h5 {[%clk 0:02:58]} 13. Bg2 {[%clk 0:02:37]}  Bd3 {[%clk 0:02:58]} 14. Nf1 {[%clk 0:02:32]}  Be4 {[%clk 0:02:51]} 15. Qe2 {[%clk 0:02:28]}  Nxd4 {[%clk 0:02:50]} 16. cxd4 {[%clk 0:02:27]}  Nc6 {[%clk 0:02:48]} 17. Qe3 {[%clk 0:02:25]}  Nxb4 {[%clk 0:02:46]} 18. Rc1 {[%clk 0:01:59]}  Nd3+ {[%clk 0:02:40]} 19. Kd1 {[%clk 0:01:57]}  Nxc1 {[%clk 0:02:38]} 20. Qxc1 {[%clk 0:01:56]}  hxg4 {[%clk 0:02:38]} 21. hxg4 {[%clk 0:01:56]}  Rxh1 {[%clk 0:02:39]} 22. Bxh1 {[%clk 0:01:52]}  b6 {[%clk 0:02:36]} 0-1


[Site "https://www.chess.com"]

[Event "Titled Tuesday Blitz October 31 Late 2023"]
[White "Likvidator228"]
[Black "Ramadoss, Ashokkumar"]
[BlackFideId "5040990"]
[WhiteElo "2542"]
[BlackElo "2387"]
[Result "1-0"]
[Round "6"]
[TimeControl "180+1"]
[Date "2023.10.31"]
[WhiteClock "0:01:10"]
[BlackClock "0:00:05"]
[Board "76"]

1. c4 {[%clk 0:03:00]}  Nf6 {[%clk 0:02:48]} 2. Nc3 {[%clk 0:02:59]}  g6 {[%clk 0:02:48]} 3. g3 {[%clk 0:02:59]}  Bg7 {[%clk 0:02:48]} 4. Bg2 {[%clk 0:03:00]}  O-O {[%clk 0:02:49]} 5. Nf3 {[%clk 0:03:00]}  d6 {[%clk 0:02:49]} 6. O-O {[%clk 0:03:00]}  c5 {[%clk 0:02:50]} 7. b3 {[%clk 0:02:59]}  Nc6 {[%clk 0:02:50]} 8. Bb2 {[%clk 0:03:00]}  a6 {[%clk 0:02:50]} 9. d4 {[%clk 0:03:00]}  Bg4 {[%clk 0:02:46]} 10. d5 {[%clk 0:02:59]}  Nb8 {[%clk 0:02:43]} 11. Qc2 {[%clk 0:02:58]}  Bf5 {[%clk 0:02:37]} 12. Qc1 {[%clk 0:02:51]}  b5 {[%clk 0:02:19]} 13. cxb5 {[%clk 0:02:50]}  axb5 {[%clk 0:02:19]} 14. Nxb5 {[%clk 0:02:51]}  Na6 {[%clk 0:01:57]} 15. Nd2 {[%clk 0:02:46]}  Nb4 {[%clk 0:01:54]} 16. a3 {[%clk 0:02:19]}  Qb6 {[%clk 0:01:05]} 17. axb4 {[%clk 0:02:16]}  Qxb5 {[%clk 0:01:01]} 18. bxc5 {[%clk 0:02:15]}  Rxa1 {[%clk 0:01:01]} 19. Qxa1 {[%clk 0:02:15]}  dxc5 {[%clk 0:00:58]} 20. e4 {[%clk 0:02:14]}  Bc8 {[%clk 0:00:44]} 21. d6 {[%clk 0:02:15]}  Qd7 {[%clk 0:00:24]} 22. e5 {[%clk 0:02:13]}  Ne8 {[%clk 0:00:19]} 23. dxe7 {[%clk 0:01:53]}  Qxe7 {[%clk 0:00:18]} 24. Nc4 {[%clk 0:01:53]}  Be6 {[%clk 0:00:18]} 25. Nd6 {[%clk 0:01:39]}  Bxb3 {[%clk 0:00:18]} 26. Ne4 {[%clk 0:01:28]}  Be6 {[%clk 0:00:16]} 27. Nf6+ {[%clk 0:01:27]}  Kh8 {[%clk 0:00:16]} 28. Rc1 {[%clk 0:01:26]}  c4 {[%clk 0:00:17]} 29. h4 {[%clk 0:01:24]}  h5 {[%clk 0:00:16]} 30. Bd4 {[%clk 0:01:20]}  Nc7 {[%clk 0:00:15]} 31. Qa7 {[%clk 0:01:17]}  Rd8 {[%clk 0:00:15]} 32. Bc5 {[%clk 0:01:14]}  Ra8 {[%clk 0:00:05]} 33. Qxa8+ {[%clk 0:01:10]} 1-0


[Site "https://www.chess.com"]

[Event "Titled Tuesday Blitz October 31 Late 2023"]
[White "Hambleton, Aman"]
[Black "hristos03"]
[WhiteFideId "2606577"]
[WhiteElo "2774"]
[BlackElo "2422"]
[Result "0-1"]
[Round "6"]
[TimeControl "180+1"]
[Date "2023.10.31"]
[WhiteClock "0:00:00"]
[BlackClock "0:00:04"]
[Board "81"]

1. d4 {[%clk 0:03:00]}  Nf6 {[%clk 0:02:58]} 2. Bf4 {[%clk 0:03:00]}  e6 {[%clk 0:02:54]} 3. e3 {[%clk 0:03:00]}  c5 {[%clk 0:02:49]} 4. c3 {[%clk 0:02:59]}  Qb6 {[%clk 0:02:39]} 5. Qb3 {[%clk 0:02:59]}  Be7 {[%clk 0:02:20]} 6. Nd2 {[%clk 0:02:55]}  O-O {[%clk 0:02:15]} 7. h3 {[%clk 0:02:55]}  d5 {[%clk 0:02:08]} 8. Ngf3 {[%clk 0:02:54]}  Nc6 {[%clk 0:01:52]} 9. Be2 {[%clk 0:02:53]}  h6 {[%clk 0:01:50]} 10. O-O {[%clk 0:02:54]}  c4 {[%clk 0:01:41]} 11. Qxb6 {[%clk 0:02:45]}  axb6 {[%clk 0:01:42]} 12. a3 {[%clk 0:02:45]}  b5 {[%clk 0:01:35]} 13. Ne5 {[%clk 0:02:45]}  Nd7 {[%clk 0:01:20]} 14. Nxd7 {[%clk 0:02:45]}  Bxd7 {[%clk 0:01:20]} 15. e4 {[%clk 0:02:42]}  Rfe8 {[%clk 0:00:56]} 16. Bf3 {[%clk 0:02:17]}  dxe4 {[%clk 0:00:55]} 17. Nxe4 {[%clk 0:02:16]}  Na5 {[%clk 0:00:46]} 18. Nd6 {[%clk 0:01:56]}  Bxd6 {[%clk 0:00:45]} 19. Bxd6 {[%clk 0:01:57]}  Bc6 {[%clk 0:00:45]} 20. Be2 {[%clk 0:01:57]}  Nb3 {[%clk 0:00:41]} 21. Rad1 {[%clk 0:01:58]}  Bd5 {[%clk 0:00:37]} 22. f3 {[%clk 0:01:40]}  Ra6 {[%clk 0:00:23]} 23. Bf4 {[%clk 0:01:30]}  Kh7 {[%clk 0:00:15]} 24. Rde1 {[%clk 0:01:12]}  Raa8 {[%clk 0:00:13]} 25. Bd1 {[%clk 0:01:12]}  Na5 {[%clk 0:00:12]} 26. Bc2+ {[%clk 0:01:12]}  g6 {[%clk 0:00:12]} 27. Kf2 {[%clk 0:01:03]}  Nc6 {[%clk 0:00:12]} 28. h4 {[%clk 0:01:03]}  h5 {[%clk 0:00:10]} 29. g4 {[%clk 0:00:49]}  hxg4 {[%clk 0:00:08]} 30. fxg4 {[%clk 0:00:50]}  Kg7 {[%clk 0:00:08]} 31. Kg3 {[%clk 0:00:47]}  f6 {[%clk 0:00:08]} 32. Rf2 {[%clk 0:00:19]}  Rh8 {[%clk 0:00:04]} 33. g5 {[%clk 0:00:07]}  f5 {[%clk 0:00:03]} 34. Be5+ {[%clk 0:00:07]}  Nxe5 {[%clk 0:00:04]} 35. Rxe5 {[%clk 0:00:08]}  Kf7 {[%clk 0:00:04]} 36. Bd1 {[%clk 0:00:08]}  Ke7 {[%clk 0:00:04]} 37. Rf1 {[%clk 0:00:02]}  Kd6 {[%clk 0:00:05]} 38. Rfe1 {[%clk 0:00:02]}  Rae8 {[%clk 0:00:04]} 39. Be2 {[%clk 0:00:02]}  Rhf8 {[%clk 0:00:04]} 40. Bd1 {[%clk 0:00:02]}  Rf7 {[%clk 0:00:05]} 41. R1e2 {[%clk 0:00:01]}  Rh7 {[%clk 0:00:05]} 42. Rf2 {[%clk 0:00:02]}  Rf8 {[%clk 0:00:05]} 43. Rf4 {[%clk 0:00:02]}  Re8 {[%clk 0:00:05]} 44. Re1 {[%clk 0:00:02]}  Rhe7 {[%clk 0:00:05]} 45. Re5 {[%clk 0:00:01]}  Rh7 {[%clk 0:00:05]} 46. Bf3 {[%clk 0:00:00]}  Bc6 {[%clk 0:00:04]} 0-1


[Site "https://www.chess.com"]

[Event "Titled Tuesday Blitz October 31 Late 2023"]
[White "Devagharan, Devina"]
[Black "Souleidis, Georgios"]
[WhiteFideId "2061600"]
[BlackFideId "4206827"]
[WhiteElo "2420"]
[BlackElo "2595"]
[Result "1-0"]
[Round "6"]
[TimeControl "180+1"]
[Date "2023.10.31"]
[WhiteClock "0:00:03"]
[BlackClock "0:00:00"]
[Board "83"]

1. d4 {[%clk 0:03:00]}  Nf6 {[%clk 0:02:59]} 2. c4 {[%clk 0:02:51]}  g6 {[%clk 0:02:58]} 3. Nc3 {[%clk 0:02:51]}  Bg7 {[%clk 0:02:59]} 4. e4 {[%clk 0:02:51]}  d6 {[%clk 0:03:00]} 5. f4 {[%clk 0:02:52]}  O-O {[%clk 0:02:58]} 6. Nf3 {[%clk 0:02:52]}  c5 {[%clk 0:02:59]} 7. d5 {[%clk 0:02:52]}  e6 {[%clk 0:02:59]} 8. Be2 {[%clk 0:02:50]}  exd5 {[%clk 0:02:59]} 9. cxd5 {[%clk 0:02:51]}  Bg4 {[%clk 0:02:59]} 10. O-O {[%clk 0:02:50]}  a6 {[%clk 0:02:58]} 11. a4 {[%clk 0:02:50]}  Ne8 {[%clk 0:02:53]} 12. h3 {[%clk 0:02:46]}  Bxf3 {[%clk 0:02:53]} 13. Bxf3 {[%clk 0:02:47]}  Nd7 {[%clk 0:02:51]} 14. Be3 {[%clk 0:02:19]}  Rb8 {[%clk 0:02:50]} 15. a5 {[%clk 0:02:10]}  Nc7 {[%clk 0:02:47]} 16. Qc2 {[%clk 0:01:55]}  Nb5 {[%clk 0:02:39]} 17. Nxb5 {[%clk 0:01:42]}  axb5 {[%clk 0:02:40]} 18. Bg4 {[%clk 0:01:37]}  Re8 {[%clk 0:02:29]} 19. Bf2 {[%clk 0:01:31]}  c4 {[%clk 0:02:13]} 20. a6 {[%clk 0:01:12]}  bxa6 {[%clk 0:01:58]} 21. Rxa6 {[%clk 0:01:01]}  Nc5 {[%clk 0:01:03]} 22. Bxc5 {[%clk 0:01:00]}  dxc5 {[%clk 0:01:04]} 23. Bf3 {[%clk 0:00:36]}  Bd4+ {[%clk 0:01:03]} 24. Kh1 {[%clk 0:00:36]}  Qh4 {[%clk 0:00:55]} 25. Qd2 {[%clk 0:00:26]}  b4 {[%clk 0:00:53]} 26. e5 {[%clk 0:00:22]}  c3 {[%clk 0:00:52]} 27. Qe1 {[%clk 0:00:09]}  Qxf4 {[%clk 0:00:42]} 28. e6 {[%clk 0:00:07]}  fxe6 {[%clk 0:00:40]} 29. Bg4 {[%clk 0:00:05]}  Qe5 {[%clk 0:00:32]} 30. Bxe6+ {[%clk 0:00:05]}  Kh8 {[%clk 0:00:32]} 31. Qh4 {[%clk 0:00:04]}  Rf8 {[%clk 0:00:20]} 32. Re1 {[%clk 0:00:03]}  Qf6 {[%clk 0:00:15]} 33. Qh6 {[%clk 0:00:01]}  Qg7 {[%clk 0:00:15]} 34. Qg5 {[%clk 0:00:01]}  cxb2 {[%clk 0:00:11]} 35. d6 {[%clk 0:00:02]}  Rbd8 {[%clk 0:00:11]} 36. Rc6 {[%clk 0:00:02]}  b3 {[%clk 0:00:10]} 37. Rc7 {[%clk 0:00:02]}  Qf6 {[%clk 0:00:01]} 38. Qh6 {[%clk 0:00:02]}  Qf1+ {[%clk 0:00:02]} 39. Rxf1 {[%clk 0:00:01]}  Rxf1+ {[%clk 0:00:03]} 40. Kh2 {[%clk 0:00:02]}  Be5+ {[%clk 0:00:03]} 41. g3 {[%clk 0:00:02]}  Rf2+ {[%clk 0:00:03]} 42. Kg1 {[%clk 0:00:02]}  b1=Q+ {[%clk 0:00:03]} 43. Kxf2 {[%clk 0:00:03]}  Qf5+ {[%clk 0:00:03]} 44. Bxf5 {[%clk 0:00:03]}  Bd4+ {[%clk 0:00:00]} 45. Ke2 {[%clk 0:00:03]} 1-0


[Site "https://www.chess.com"]